fUSD/lending_fUSD_20250216
["ID","MTS","AMOUNT","RATE_DAILY","PERIOD"]
[353275144,1739736632894,-463.6339236,0.00013744,2]
[353275146,1739736632903,-200.0,0.00013771,2]
[353275148,1739736632913,-1500.0,0.00013775,2]
[353275149,1739736632922,-954.92233312,0.00013794,2]
[353275151,1739736632933,-168.8,0.00013812,2]
[353275153,1739736632943,-500.0,0.00013894,2]
[353275156,1739736632952,-500.0,0.00013894,2]
[353275158,1739736632962,-1004.16,0.00013972,3]
[353275160,1739736632973,-650.0,0.00014,2]
[353275162,1739736632982,-437.64,0.00014164,2]
[353275164,1739736632992,-152.0,0.00014217,3]
[353275166,1739736633002,-1004.16,0.00014246,3]
[353275168,1739736633012,-1000.0,0.000144,2]
[353275170,1739736633023,-2103.0,0.00014497,2]
[353275171,1739736633033,-1004.16,0.0001452,3]
[353275173,1739736633043,-411.42765315,0.00014599,2]
[353275175,1739736633053,-1187.0,0.000146,2]
[353275177,1739736633065,-2103.0,0.00014646,2]
[353275179,1739736633075,-302.62846639,0.00014676,2]
[353275180,1739736633085,-302.6284663,0.00014679,2]
[353275182,1739736633099,-302.6284663,0.00014681,2]
[353275184,1739736633109,-302.6284663,0.00014684,2]
[353275186,1739736633120,-302.6284663,0.00014687,2]
[353275188,1739736633131,-392.3432803,0.00014689,2]
[353275190,1739736633141,-302.6284663,0.00014689,2]
[353275191,1739736633150,-302.6284663,0.00014692,2]
[353275193,1739736633160,-302.6284663,0.00014695,2]
[353275195,1739736633169,-1342.759,0.00014696,2]
[353275197,1739736633180,-302.6284663,0.00014697,2]
[353275199,1739736633191,-4471.26982864,0.00014699,2]
[353275200,1739736633201,-168.05611094,0.00014699,2]
[353275202,1739736633211,-3934.17137231,0.00014699,2]
[353275204,1739736633220,-959.44568074,0.00014699,2]
[353275205,1739736633229,-16776.33673169,0.00014699,2]
[353275207,1739736633436,-1227.90565748,0.00014699,2]
[353275209,1739736633447,-254.38805498,0.00014699,2]
[353275211,1739736633458,-339.18015028,0.00014699,2]
[353275213,1739736633470,-4471.2698286,0.00014699,2]
[353275215,1739736633480,-4471.2698286,0.00014699,2]
[353275218,1739736633491,-4471.2698286,0.00014699,2]
[353275220,1739736633502,-4471.2698286,0.00014699,2]
[353275222,1739736633512,-1184.75545018,0.000147,2]
[353275224,1739736633525,-3286.51437842,0.000147,2]
[353275226,1739736633535,-4471.2698286,0.000147,2]
[353275228,1739736633545,-4471.2698286,0.000147,2]
[353275230,1739736633555,-4471.2698286,0.000147,2]
[353275232,1739736633564,-233.04069984,0.000147,2]
[353275234,1739736633574,-302.6284663,0.000147,2]
[353275236,1739736633583,-4471.2698286,0.000147,2]
[353275238,1739736633597,-150.0,0.00014716,2]
[353275240,1739736633607,-1000.0,0.00014716,2]
[353275242,1739736633617,-150.0,0.00014721,2]
[353275244,1739736633626,-150.0,0.00014727,2]
[353275246,1739736633635,-168.05611094,0.00014731,2]
[353275248,1739736633645,-300.0,0.00014734,2]
[353275250,1739736633655,-150.0,0.00014736,2]
[353275252,1739736633665,-150.0,0.00014738,2]
[353275254,1739736633674,-150.0,0.00014738,2]
[353275256,1739736633685,-150.0,0.00014739,2]
[353275258,1739736633696,-150.0,0.00014739,2]
[353275260,1739736633705,-150.0,0.0001474,2]
[353275262,1739736633715,-150.0,0.00014741,2]
[353275264,1739736633725,-150.0,0.00014742,2]
[353275266,1739736633735,-150.0,0.00014747,2]
[353275268,1739736633745,-1000.0,0.00014752,2]
[353275270,1739736633755,-168.05611094,0.00014763,2]
[353275272,1739736633765,-150.0,0.00014765,2]
[353275274,1739736633775,-3717.28,0.00014765,2]
[353275276,1739736633786,-150.0,0.0001477,2]
[353275278,1739736633796,-1000.0,0.00014774,2]
[353275280,1739736633806,-500.0,0.00014774,2]
[353275282,1739736633816,-500.0,0.00014774,2]
[353275284,1739736633826,-500.0,0.00014774,2]
[353275286,1739736633836,-500.0,0.00014774,2]
[353275288,1739736633847,-500.0,0.00014774,2]
[353275290,1739736633861,-500.0,0.00014774,2]
[353275292,1739736633871,-500.0,0.00014774,2]
[353275294,1739736633881,-504.22799137,0.00014774,2]
[353275296,1739736633892,-500.0,0.00014774,2]
[353275298,1739736633903,-500.0,0.00014774,2]
[353275300,1739736633914,-500.0,0.00014774,2]
[353275302,1739736633924,-500.0,0.00014774,2]
[353275304,1739736633935,-500.0,0.00014774,2]
[353275306,1739736633945,-500.0,0.00014774,2]
[353275308,1739736633956,-510.11529571,0.00014774,2]
[353275310,1739736633967,-500.0,0.00014774,2]
[353275312,1739736633977,-500.0,0.00014774,2]
[353275314,1739736633987,-500.0,0.00014774,2]
[353275316,1739736633997,-500.0,0.00014774,2]
[353275318,1739736634008,-500.0,0.00014774,2]
[353275320,1739736634018,-500.0,0.00014774,2]
[353275322,1739736634028,-500.0,0.00014774,2]
[353275324,1739736634037,-500.0,0.00014774,2]
[353275326,1739736634047,-706.734482,0.00014774,2]
[353275328,1739736634058,-500.0,0.00014774,2]
[353275330,1739736634068,-500.0,0.00014774,2]
[353275332,1739736634078,-500.0,0.00014774,2]
[353275334,1739736634089,-157.700219,0.00014774,2]
[353275336,1739736634103,-500.0,0.00014774,2]
[353275339,1739736634113,-500.0,0.00014774,2]
[353275341,1739736634125,-500.52065263,0.00014774,2]
[353275343,1739736634134,-156.236594,0.00014774,2]
[353275345,1739736634145,-500.0,0.00014774,2]
[353275346,1739736634154,-34770.86055445,0.00014775,2]
[353275349,1739736634171,-2390.37141977,0.00014775,2]
[353275351,1739736634185,-455.85,0.00014775,2]
[353275354,1739736634197,-34349.35729214,0.00014775,2]
[353275356,1739736634207,-150.0,0.00014776,2]
[353275358,1739736634216,-150.0,0.00014785,2]
[353275360,1739736634226,-3717.28,0.00014789,2]
[353275362,1739736634235,-741.67783992,0.00014789,2]
[353275363,1739736634245,-741.67783992,0.00014789,2]
[353275365,1739736634255,-741.67783992,0.0001479,2]
[353275367,1739736634265,-1004.16,0.00014794,3]
[353275369,1739736634275,-150.0,0.00014794,2]
[353275371,1739736634285,-168.05611094,0.00014795,2]
[353275373,1739736634295,-2103.0,0.00014796,2]
[353275376,1739736634305,-18809.36097198,0.00014796,2]
[353275378,1739736634317,-2480.24602215,0.00014796,2]
[353275380,1739736634329,-1863.88495208,0.00014796,2]
[353275382,1739736634341,-915.54,0.00014796,2]
[353275384,1739736634353,-272.049998,0.00014796,2]
[353275386,1739736634365,-234726.1055546,0.00014796,2]
[353275388,1739736634377,-2875.5246611,0.00014796,2]
[353275391,1739736634389,-1672.000009,0.00014796,2]
[353275393,1739736634400,-472.4999982,0.00014796,2]
[353275395,1739736634412,-585.49977958,0.00014796,2]
[353275397,1739736634425,-384.54,0.00014796,2]
[353275400,1739736634438,-404.92261432,0.00014796,2]
[353275402,1739736634450,-2629.81585268,0.00014796,2]
[353275404,1739736634462,-2286.05256032,0.00014796,2]
[353275406,1739736634474,-521.09921905,0.00014796,2]
[353275409,1739736634485,-255.53133888,0.00014796,2]
[353275411,1739736634497,-627.31501192,0.00014796,2]
[353275413,1739736634508,-400.24999975,0.00014796,2]
[353275415,1739736634520,-382.3260001,0.00014796,2]
[353275417,1739736634532,-319.5625,0.00014796,2]
[353275419,1739736634543,-296.101408,0.00014796,2]
[353275422,1739736634554,-286.29047868,0.00014796,2]
[353275424,1739736634566,-301.35,0.00014796,2]
[353275426,1739736634577,-530.70010988,0.00014796,2]
[353275428,1739736634588,-624.65800251,0.00014796,2]
[353275603,1739736637414,-500.0,0.00014774,2]
[353275604,1739736637423,-238.4574467,0.00014774,2]
[353275605,1739736637577,-261.5425533,0.00014774,2]
[353275606,1739736637586,-500.0,0.00014774,2]
[353275607,1739736637595,-500.0,0.00014774,2]
[353275608,1739736637605,-500.0,0.00014774,2]
[353275609,1739736637614,-47911.55924312,0.00014796,2]
[353275610,1739736637623,-130.36874205,0.00014798,2]
[353275611,1739736637635,-169.63125795,0.00014798,2]
[353275612,1739736637644,-666.0,0.00014798,2]
[353275613,1739736637654,-150.0,0.00014798,2]
[353275614,1739736637663,-500.0,0.00014798,2]
[353275615,1739736637673,-18.2539999,0.00014798,2]
[353275616,1739736637685,-484.09561391,0.00014798,2]
[353275617,1739736637694,-534.47615633,0.00014798,2]
[353275618,1739736637705,-500.0,0.00014798,2]
[353275619,1739736637715,-500.0,0.00014798,2]
[353275620,1739736637724,-500.0,0.00014798,2]
[353275621,1739736637734,-706.78,0.00014798,2]
[353275622,1739736637743,-500.0,0.00014798,2]
[353275623,1739736637752,-500.0,0.00014798,2]
[353275624,1739736637762,-500.0,0.00014798,2]
[353275625,1739736637771,-500.0,0.00014798,2]
[353275626,1739736637780,-500.0,0.00014798,2]
[353275627,1739736637790,-500.0,0.00014798,2]
[353275629,1739736637800,-500.0,0.00014798,2]
[353275631,1739736637809,-500.0,0.00014798,2]
[353275632,1739736637819,-500.0,0.00014798,2]
[353275633,1739736637829,-500.0,0.00014798,2]
[353275634,1739736637838,-500.0,0.00014798,2]
[353275635,1739736637847,-500.0,0.00014798,2]
[353275636,1739736637857,-500.0,0.00014798,2]
[353275637,1739736637868,-500.0,0.00014798,2]
[353275638,1739736637878,-500.0,0.00014798,2]
[353275639,1739736637888,-500.0,0.00014798,2]
[353275640,1739736637898,-544.82,0.00014798,2]
[353275641,1739736637907,-500.0,0.00014798,2]
[353275642,1739736637917,-500.0,0.00014798,2]
[353275643,1739736637926,-502.48240884,0.00014798,2]
[353275644,1739736637936,-500.0,0.00014798,2]
[353275645,1739736637945,-500.0,0.00014798,2]
[353275646,1739736637955,-500.0,0.00014798,2]
[353275647,1739736637966,-500.0,0.00014798,2]
[353275648,1739736637975,-501.86182816,0.00014798,2]
[353275649,1739736637985,-500.0,0.00014798,2]
[353275650,1739736637994,-500.0,0.00014798,2]
[353275651,1739736638004,-500.0,0.00014798,2]
[353275652,1739736638013,-500.0,0.00014798,2]
[353275653,1739736638023,-500.0,0.00014798,2]
[353275654,1739736638033,-500.0,0.00014798,2]
[353275655,1739736638042,-114.26992551,0.00014798,2]
[353275661,1739736639683,-805.22000002,0.00012342,2]
[353275662,1739736639848,-303.77999998,0.00012342,2]
[353275663,1739736639858,-500.0,0.00014774,2]
[353275664,1739736639867,-385.73007449,0.00014798,2]
[353275665,1739736639876,-500.0,0.00014798,2]
[353275666,1739736639886,-500.0,0.00014798,2]
[353275667,1739736639894,-500.0,0.00014798,2]
[353275668,1739736639904,-500.0,0.00014798,2]
[353275669,1739736639913,-500.0,0.00014798,2]
[353275670,1739736639923,-500.0,0.00014798,2]
[353275671,1739736639932,-623.1,0.00014798,2]
[353275672,1739736639942,-500.0,0.00014798,2]
[353275673,1739736639952,-500.0,0.00014798,2]
[353275674,1739736639961,-500.0,0.00014798,2]
[353275675,1739736639971,-500.0,0.00014798,2]
[353275676,1739736639980,-500.0,0.00014798,2]
[353275677,1739736639990,-500.0,0.00014798,2]
[353275678,1739736639999,-500.0,0.00014798,2]
[353275679,1739736640008,-500.0,0.00014798,2]
[353275680,1739736640018,-500.0,0.00014798,2]
[353275681,1739736640028,-500.0,0.00014798,2]
[353275682,1739736640038,-300.0,0.00014798,2]
[353275683,1739736640048,-500.0,0.00014798,2]
[353275684,1739736640211,-500.0,0.00014798,2]
[353275685,1739736640221,-500.0,0.00014798,2]
[353275686,1739736640230,-500.0,0.00014798,2]
[353275687,1739736640240,-500.0,0.00014798,2]
[353275688,1739736640249,-666.0,0.00014798,2]
[353275689,1739736640258,-502.98,0.00014798,2]
[353275690,1739736640268,-500.0,0.00014798,2]
[353275691,1739736640277,-500.0,0.00014798,2]
[353275692,1739736640286,-500.0,0.00014798,2]
[353275693,1739736640295,-500.0,0.00014798,2]
[353275694,1739736640305,-1453.72103393,0.00014798,3]
[353275695,1739736640314,-4872757.2124719,0.00014798,3]
[353275768,1739736645550,-181.09094,0.00013857,6]
[353275770,1739736645559,-879.52414078,0.00014774,2]
[353275772,1739736645569,-500.0,0.00014774,2]
[353275774,1739736645579,-500.0,0.00014774,2]
[353275776,1739736645588,-500.0,0.00014774,2]
[353275778,1739736645597,-6262.99002485,0.00014798,3]
[353275846,1739736979051,500.0,0.0002,120]
[353275847,1739736979306,500.0,0.0002,120]
[353275848,1739736979570,623.14,0.0002,120]
[353275850,1739737605820,500.0,0.0002,120]
[353275851,1739737606052,500.0,0.0002,120]
[353275852,1739737606287,623.14,0.0002,120]
[353275864,1739737831946,-725.83,9.032e-05,2]
[353275865,1739737831956,-8744.04253014,0.0001,2]
[353275996,1739737837868,-2152.0,0.0001,2]
[353275997,1739737837883,-48456.4761124,0.0001,2]
[353275998,1739737837892,-8062.88459252,0.0001,2]
[353275999,1739737837902,-200.0,0.00010018,2]
[353276000,1739737837911,-500.0,0.00010036,2]
[353276001,1739737837921,-200.0,0.00010104,2]
[353276002,1739737837930,-9372.88901948,0.00010136,2]
[353276003,1739737839629,-2162.4465061,0.00010136,2]
[353276004,1739737839642,-10108.99017632,0.00010136,2]
[353276005,1739737839745,-2254.030016,0.00010136,2]
[353276006,1739737839756,-1573.250001,0.00010136,2]
[353276007,1739737839798,-722.48634946,0.00010136,2]
[353276008,1739737839809,-431.44813528,0.00010136,2]
[353276009,1739737839818,-495.38,0.00010137,2]
[353276010,1739737839827,-439.83468931,0.000108,2]
[353276011,1739737839838,-2460.80851907,0.000108,2]
[353276012,1739737839849,-12899.53463118,0.000108,2]
[353276013,1739737839862,-7838.81332234,0.000108,2]
[353276014,1739737839874,-1069.44513025,0.000108,2]
[353276015,1739737839885,-1826.67504656,0.000108,2]
[353276016,1739737839909,-148396.48531517,0.000108,2]
[353276017,1739737839919,-500.0,0.00010958,2]
[353276018,1739737839927,-500.0,0.00010958,2]
[353276019,1739737839937,-769.06,0.00010958,2]
[353276020,1739737839945,-500.0,0.00010958,2]
[353276021,1739737839955,-704.12,0.00010958,2]
[353276022,1739737839963,-500.0,0.00010958,2]
[353276023,1739737839974,-861.49,0.00010958,2]
[353276024,1739737839983,-1137.53,0.00010958,2]
[353276025,1739737839992,-710.33,0.00010958,2]
[353276026,1739737840002,-747.78,0.00010958,2]
[353276027,1739737840011,-1312.86,0.00010958,2]
[353276028,1739737840020,-500.0,0.00010958,2]
[353276029,1739737840029,-506.11,0.00010958,2]
[353276030,1739737840039,-500.0,0.00010958,2]
[353276031,1739737840048,-500.0,0.00010958,2]
[353276032,1739737840058,-502.1985784,0.00010958,2]
[353276033,1739737840067,-500.0,0.00010958,2]
[353276034,1739737840077,-500.0,0.00010958,2]
[353276035,1739737840086,-500.0,0.00010958,2]
[353276036,1739737840095,-500.0,0.00010958,2]
[353276037,1739737840105,-500.0,0.00010958,2]
[353276038,1739737840114,-500.0,0.00010958,2]
[353276039,1739737840123,-500.0,0.00010958,2]
[353276040,1739737840132,-588.03921503,0.00010958,2]
[353276041,1739737840141,-500.0,0.00010958,2]
[353276042,1739737840150,-500.0,0.00010958,2]
[353276043,1739737840160,-500.0,0.00010958,2]
[353276044,1739737840169,-500.0,0.00010958,2]
[353276045,1739737840178,-500.0,0.00010958,2]
[353276046,1739737840188,-500.0,0.00010958,2]
[353276047,1739737840197,-500.0,0.00010958,2]
[353276048,1739737840206,-500.0,0.00010958,2]
[353276049,1739737840215,-500.0,0.00010958,2]
[353276050,1739737840225,-500.0,0.00010958,2]
[353276051,1739737840234,-633.44,0.00010958,2]
[353276052,1739737840243,-661.27,0.00011,2]
[353276053,1739737840253,-200.0,0.00011,2]
[353276054,1739737840262,-500.0,0.00011041,2]
[353276055,1739737840271,-500.0,0.00011041,2]
[353276056,1739737840281,-769.06,0.00011041,2]
[353276057,1739737840290,-500.0,0.00011041,2]
[353276058,1739737840299,-704.12,0.00011041,2]
[353276059,1739737840308,-500.0,0.00011041,2]
[353276060,1739737840318,-861.49,0.00011041,2]
[353276061,1739737840327,-1137.53,0.00011041,2]
[353276062,1739737840337,-710.33,0.00011041,2]
[353276063,1739737840346,-747.78,0.00011041,2]
[353276064,1739737840355,-1312.86,0.00011041,2]
[353276065,1739737840365,-500.0,0.00011041,2]
[353276066,1739737840374,-506.11,0.00011041,2]
[353276067,1739737840383,-500.0,0.00011041,2]
[353276068,1739737840393,-500.0,0.00011041,2]
[353276069,1739737840402,-500.0,0.00011041,2]
[353276070,1739737840411,-500.0,0.00011041,2]
[353276071,1739737840420,-500.0,0.00011041,2]
[353276072,1739737840430,-500.0,0.00011041,2]
[353276073,1739737840439,-507.18931824,0.00011041,2]
[353276074,1739737840448,-500.0,0.00011041,2]
[353276075,1739737840457,-500.0,0.00011041,2]
[353276076,1739737840468,-500.0,0.00011041,2]
[353276077,1739737840479,-500.0,0.00011041,2]
[353276078,1739737840488,-500.0,0.00011041,2]
[353276079,1739737840498,-500.0,0.00011041,2]
[353276080,1739737840507,-502.05247425,0.00011041,2]
[353276081,1739737840518,-601.87846895,0.00011041,2]
[353276082,1739737840528,-500.0,0.00011041,2]
[353276083,1739737840538,-338.09,0.00011041,2]
[353276084,1739737840548,-633.44,0.00011041,2]
[353276085,1739737840558,-500.0,0.00011123,2]
[353276086,1739737840567,-500.0,0.00011123,2]
[353276087,1739737840577,-769.06,0.00011123,2]
[353276088,1739737840586,-500.0,0.00011123,2]
[353276089,1739737840595,-704.12,0.00011123,2]
[353276090,1739737840605,-500.0,0.00011123,2]
[353276091,1739737840615,-861.49,0.00011123,2]
[353276092,1739737840624,-1137.53,0.00011123,2]
[353276093,1739737840633,-710.33,0.00011123,2]
[353276094,1739737840642,-747.78,0.00011123,2]
[353276095,1739737840652,-1312.86,0.00011123,2]
[353276096,1739737840661,-500.0,0.00011123,2]
[353276097,1739737840671,-506.11,0.00011123,2]
[353276098,1739737840680,-500.0,0.00011123,2]
[353276099,1739737840690,-500.0,0.00011123,2]
[353276100,1739737840699,-500.0,0.00011123,2]
[353276101,1739737840708,-500.0,0.00011123,2]
[353276102,1739737840718,-500.0,0.00011123,2]
[353276103,1739737840728,-500.0,0.00011123,2]
[353276104,1739737840736,-500.0,0.00011123,2]
[353276105,1739737840745,-500.0,0.00011123,2]
[353276106,1739737840755,-500.0,0.00011123,2]
[353276107,1739737840765,-500.0,0.00011123,2]
[353276108,1739737840774,-500.0,0.00011123,2]
[353276109,1739737840784,-500.0,0.00011123,2]
[353276110,1739737840793,-644.35259822,0.00011123,2]
[353276111,1739737840802,-633.44,0.00011123,2]
[353276112,1739737840811,-500.0,0.00011154,2]
[353276113,1739737840820,-500.0,0.00011154,2]
[353276114,1739737840829,-500.0,0.00011205,2]
[353276115,1739737840839,-500.0,0.00011205,2]
[353276116,1739737840848,-769.06,0.00011205,2]
[353276117,1739737840858,-500.0,0.00011205,2]
[353276118,1739737840868,-704.12,0.00011205,2]
[353276119,1739737840878,-500.0,0.00011205,2]
[353276120,1739737840889,-861.49,0.00011205,2]
[353276121,1739737840900,-1137.53,0.00011205,2]
[353276122,1739737840910,-710.33,0.00011205,2]
[353276123,1739737840919,-747.78,0.00011205,2]
[353276124,1739737840929,-1312.86,0.00011205,2]
[353276125,1739737840938,-500.0,0.00011205,2]
[353276126,1739737840948,-500.0,0.00011205,2]
[353276127,1739737840958,-506.11,0.00011205,2]
[353276128,1739737840967,-500.0,0.00011205,2]
[353276129,1739737840978,-500.0,0.00011205,2]
[353276130,1739737840987,-500.0,0.00011205,2]
[353276131,1739737840996,-500.0,0.00011205,2]
[353276132,1739737841005,-500.0,0.00011205,2]
[353276133,1739737841015,-500.0,0.00011205,2]
[353276134,1739737841024,-500.0,0.00011205,2]
[353276135,1739737841034,-500.0,0.00011205,2]
[353276136,1739737841043,-500.0,0.00011205,2]
[353276137,1739737841053,-500.0,0.00011205,2]
[353276138,1739737841062,-500.0,0.00011205,2]
[353276139,1739737841072,-500.0,0.00011287,2]
[353276140,1739737841081,-500.0,0.00011287,2]
[353276141,1739737841090,-769.06,0.00011287,2]
[353276142,1739737841099,-704.12,0.00011287,2]
[353276143,1739737841109,-500.0,0.00011287,2]
[353276144,1739737841118,-861.49,0.00011287,2]
[353276145,1739737841127,-1137.53,0.00011287,2]
[353276146,1739737841136,-710.33,0.00011287,2]
[353276147,1739737841146,-747.78,0.00011287,2]
[353276148,1739737841155,-1312.86,0.00011287,2]
[353276149,1739737841164,-513.88463583,0.00011287,2]
[353276150,1739737841174,-500.0,0.00011287,2]
[353276151,1739737841183,-506.11,0.00011287,2]
[353276152,1739737841193,-501.97206974,0.00011287,2]
[353276153,1739737841202,-370.46874749,0.00011287,2]
[353276154,1739737841212,-500.0,0.00011287,2]
[353276155,1739737841221,-500.0,0.00011287,2]
[353276156,1739737841230,-500.0,0.00011287,2]
[353276157,1739737841240,-500.0,0.00011287,2]
[353276158,1739737841249,-504.313894,0.00011287,2]
[353276159,1739737841259,-500.0,0.00011287,2]
[353276160,1739737841268,-500.0,0.00011287,2]
[353276161,1739737841278,-500.0,0.00011287,2]
[353276162,1739737841287,-725.83,0.00011296,2]
[353276163,1739737841296,-500.0,0.00011369,2]
[353276164,1739737841306,-500.0,0.00011369,2]
[353276165,1739737841315,-769.06,0.00011369,2]
[353276166,1739737841324,-704.12,0.00011369,2]
[353276167,1739737841333,-500.0,0.00011369,2]
[353276168,1739737841342,-861.49,0.00011369,2]
[353276169,1739737841351,-1137.53,0.00011369,2]
[353276170,1739737841361,-710.33,0.00011369,2]
[353276171,1739737841371,-747.78,0.00011369,2]
[353276172,1739737841380,-1312.86,0.00011369,2]
[353276173,1739737841390,-506.11,0.00011369,2]
[353276174,1739737841400,-500.0,0.00011369,2]
[353276175,1739737841409,-500.0,0.00011369,2]
[353276176,1739737841418,-501.94483349,0.00011369,2]
[353276177,1739737841428,-500.0,0.00011369,2]
[353276178,1739737841437,-500.0,0.00011369,2]
[353276179,1739737841446,-500.0,0.00011369,2]
[353276180,1739737841455,-500.0,0.00011369,2]
[353276181,1739737841464,-500.0,0.00011369,2]
[353276182,1739737841474,-500.0,0.00011452,2]
[353276183,1739737841487,-500.0,0.00011452,2]
[353276184,1739737841496,-769.06,0.00011452,2]
[353276185,1739737841505,-704.12,0.00011452,2]
[353276186,1739737841515,-500.0,0.00011452,2]
[353276187,1739737841525,-861.49,0.00011452,2]
[353276188,1739737841534,-1137.53,0.00011452,2]
[353276189,1739737841542,-710.33,0.00011452,2]
[353276190,1739737841551,-747.78,0.00011452,2]
[353276191,1739737841562,-1312.86,0.00011452,2]
[353276192,1739737841572,-506.11,0.00011452,2]
[353276193,1739737841581,-500.0,0.00011452,2]
[353276194,1739737841590,-500.0,0.00011452,2]
[353276195,1739737841599,-500.0,0.00011452,2]
[353276196,1739737841608,-500.0,0.00011452,2]
[353276197,1739737841618,-205.44985849,0.00011452,2]
[353276198,1739737841629,-500.0,0.00011534,2]
[353276199,1739737841639,-500.0,0.00011534,2]
[353276200,1739737841649,-769.06,0.00011534,2]
[353276201,1739737841659,-704.12,0.00011534,2]
[353276202,1739737841668,-500.0,0.00011534,2]
[353276203,1739737841678,-861.49,0.00011534,2]
[353276204,1739737841688,-1137.53,0.00011534,2]
[353276205,1739737841697,-710.33,0.00011534,2]
[353276206,1739737841706,-747.78,0.00011534,2]
[353276207,1739737841716,-1312.86,0.00011534,2]
[353276208,1739737841859,-506.11,0.00011534,2]
[353276209,1739737841869,-500.0,0.00011534,2]
[353276210,1739737841878,-500.0,0.00011534,2]
[353276211,1739737841888,-500.0,0.00011534,2]
[353276212,1739737841897,-500.0,0.00011534,2]
[353276213,1739737841907,-500.0,0.00011616,2]
[353276214,1739737841916,-500.0,0.00011616,2]
[353276215,1739737841925,-769.06,0.00011616,2]
[353276216,1739737841935,-704.12,0.00011616,2]
[353276217,1739737841944,-500.0,0.00011616,2]
[353276218,1739737841955,-861.49,0.00011616,2]
[353276219,1739737841964,-1137.53,0.00011616,2]
[353276220,1739737841975,-710.33,0.00011616,2]
[353276221,1739737841984,-747.78,0.00011616,2]
[353276222,1739737841994,-1312.86,0.00011616,2]
[353276223,1739737842004,-506.11,0.00011616,2]
[353276224,1739737842014,-500.0,0.00011616,2]
[353276225,1739737842024,-568.2,0.00011616,2]
[353276226,1739737842033,-500.0,0.00011616,2]
[353276227,1739737842043,-500.0,0.00011616,2]
[353276228,1739737842052,-2113.38700996,0.00011656,2]
[353276229,1739737842061,-1710.68,0.00011656,2]
[353276230,1739737842070,-500.0,0.00011698,2]
[353276231,1739737842080,-500.0,0.00011698,2]
[353276232,1739737842089,-769.06,0.00011698,2]
[353276233,1739737842099,-704.12,0.00011698,2]
[353276234,1739737842109,-500.0,0.00011698,2]
[353276235,1739737842119,-861.49,0.00011698,2]
[353276236,1739737842128,-1137.53,0.00011698,2]
[353276237,1739737842138,-710.33,0.00011698,2]
[353276238,1739737842148,-747.78,0.00011698,2]
[353276239,1739737842158,-1312.86,0.00011698,2]
[353276240,1739737842168,-506.11,0.00011698,2]
[353276241,1739737842178,-500.0,0.00011698,2]
[353276242,1739737842187,-500.0,0.00011698,2]
[353276243,1739737842197,-500.0,0.00011698,2]
[353276244,1739737842208,-500.0,0.0001178,2]
[353276245,1739737842217,-500.0,0.0001178,2]
[353276246,1739737842227,-769.06,0.0001178,2]
[353276247,1739737842236,-704.12,0.0001178,2]
[353276248,1739737842246,-500.0,0.0001178,2]
[353276249,1739737842256,-861.49,0.0001178,2]
[353276250,1739737842266,-1137.53,0.0001178,2]
[353276251,1739737842275,-710.33,0.0001178,2]
[353276252,1739737842285,-747.78,0.0001178,2]
[353276253,1739737842295,-1312.86,0.0001178,2]